bitfinex/quotes_BTCUSD_20251230
["timestamp","ask_amount","ask_price","bid_price","bid_amount"]
[1767120701394,0.15719221,88244.0,88228.0,0.15691121]
[1767120701395,0.14586,88242.0,88228.0,0.00010694]
[1767120701594,0.14586,88242.0,88229.0,0.01133414]
[1767120702175,0.14586,88242.0,88228.0,0.01144121]
[1767120702176,0.01133092,88241.0,88228.0,0.01144121]
[1767120702344,0.01133092,88241.0,88228.0,0.00010694]
[1767120702715,0.01107792,88241.0,88228.0,0.00010694]
[1767120703133,0.01107792,88241.0,88228.0,0.01144121]
[1767120703344,0.01107792,88241.0,88228.0,0.00010694]
[1767120703556,0.01107792,88241.0,88228.0,0.01144121]
[1767120704476,0.01107792,88241.0,88228.0,0.00010694]
[1767120705299,0.01107792,88241.0,88229.0,0.14547]
[1767120706242,0.01133247,88242.0,88229.0,0.14547]
[1767120706448,0.01133478,88224.0,88193.0,0.0114]
[1767120706574,0.01133529,88220.0,88203.0,0.13551]
[1767120706769,0.0114,88221.0,88201.0,0.13551]
[1767120706998,0.0114,88221.0,88200.0,0.05668898]
[1767120706999,0.16324516,88221.0,88203.0,0.13551]
[1767120707206,0.15184555,88218.0,88199.0,0.13600134]
[1767120707544,0.01133606,88214.0,88200.0,0.13551]
[1767120707688,0.15184594,88215.0,88201.0,0.01133773]
[1767120707887,0.15184594,88215.0,88200.0,0.14684786]
[1767120708094,0.01133606,88214.0,88200.0,0.13551]
[1767120708352,0.01133606,88214.0,88199.0,0.00049134]
[1767120708353,0.14051,88219.0,88214.0,0.00055]
[1767120708550,0.01133632,88212.0,88199.0,0.00049134]
[1767120708704,0.15184632,88212.0,88199.0,0.00049134]
[1767120708898,0.14051,88212.0,88200.0,0.0114]
[1767120709096,0.01133645,88211.0,88200.0,0.0114]
[1767120709315,0.15184632,88212.0,88200.0,0.0114]
[1767120709610,0.01133696,88207.0,88200.0,0.0114]
[1767120709840,0.01133684,88208.0,88200.0,0.0114]
[1767120710009,0.01133645,88211.0,88199.0,0.00049134]
[1767120710212,0.56341955,88210.0,88199.0,0.00049134]
[1767120710418,0.01133696,88207.0,88199.0,0.00049134]
[1767120710619,0.15184696,88207.0,88199.0,0.00049134]
[1767120710968,0.14051,88207.0,88199.0,0.00049134]
[1767120711907,0.10301016,88206.0,88199.0,0.00049134]
[1767120712127,0.14051,88190.0,88176.0,0.0003844]
[1767120712321,0.01133928,88189.0,88186.0,0.00049835]
[1767120712535,0.20854605,88189.0,88186.0,0.00049835]
[1767120712740,0.15185005,88183.0,88176.0,0.0003844]
[1767120712992,0.01134018,88182.0,88176.0,0.0003844]
[1767120713137,0.01134018,88182.0,88159.0,0.04536]
[1767120713138,0.15185056,88179.0,88159.0,0.04536]
[1767120713357,0.06804308,88180.0,88164.0,0.13551]
[1767120713557,0.01134056,88179.0,88164.0,0.13551]
[1767120713812,0.06804308,88180.0,88179.0,9.1e-05]
[1767120713813,0.15185044,88180.0,88179.0,9.1e-05]
[1767120714173,0.14051,88178.0,88163.0,0.01134262]
[1767120714714,0.14051,88175.0,88161.0,0.01134288]
[1767120714892,0.14051,88175.0,88162.0,0.01134275]
[1767120715096,0.14051,88175.0,88163.0,0.01134262]
[1767120715297,0.01134069,88178.0,88162.0,0.01145995]
[1767120715298,0.01134069,88178.0,88162.0,0.1356272]
[1767120715476,0.14051,88178.0,88163.0,0.01134262]
[1767120715885,0.14051,88178.0,88165.0,0.01134236]
[1767120716071,0.14086579,88183.0,88178.0,9.1e-05]
[1767120716284,0.01175579,88183.0,88178.0,9.1e-05]
[1767120716729,0.14051,88182.0,88169.0,0.01134185]
[1767120716886,0.14051,88182.0,88170.0,0.01134172]
[1767120717087,0.14051,88182.0,88169.0,0.01134185]
[1767120717288,0.00035579,88183.0,88172.0,0.01134146]
[1767120717700,0.00026479,88183.0,88174.0,0.01134121]
[1767120717905,0.00026479,88183.0,88172.0,0.01134146]
[1767120718316,0.00026479,88183.0,88174.0,0.01134121]
[1767120718537,0.00026479,88183.0,88173.0,0.01134134]
[1767120718739,0.00026479,88183.0,88178.0,0.01134069]
[1767120718938,0.00026479,88183.0,88177.0,0.01134082]
[1767120719114,0.14546479,88183.0,88171.0,0.05070742]
[1767120719320,0.14546479,88183.0,88168.0,0.01134198]
[1767120719519,0.1452,88179.0,88169.0,0.01134185]
[1767120719836,0.14465,88179.0,88165.0,0.01134236]
[1767120720151,0.14465,88179.0,88164.0,0.01134249]
[1767120720322,0.14465,88179.0,88167.0,0.01134211]
[1767120720517,0.14465,88179.0,88165.0,0.01134236]
[1767120720837,0.14465,88179.0,88167.0,0.01134211]
[1767120721294,0.14465,88179.0,88165.0,0.01134236]
[1767120721502,0.0114,88178.0,88170.0,0.05670801]
[1767120721673,0.0114,88177.0,88168.0,0.01134198]
[1767120722409,0.1452,88180.0,88172.0,0.01134146]
[1767120722571,0.0114,88177.0,88168.0,0.01134198]
[1767120723104,0.0114,88177.0,88169.0,0.01134185]
[1767120724014,0.06802474,88204.0,88184.0,0.13641]
[1767120724154,0.1566,88203.0,88190.0,0.01079015]
[1767120724353,0.1452,88201.0,88190.0,0.01079015]
[1767120724569,0.0114,88202.0,88201.0,0.000549]
[1767120725064,0.1452,88208.0,88201.0,0.000549]
[1767120725196,0.0114,88203.0,88194.0,0.01133863]
[1767120725400,0.0114,88205.0,88195.0,0.13641]
[1767120725598,0.0114,88205.0,88193.0,0.01133876]
[1767120725803,0.1452,88210.0,88195.0,0.01133851]
[1767120726009,0.0114,88207.0,88196.0,0.01133838]
[1767120726227,0.0114,88208.0,88197.0,0.01129699]
[1767120726614,0.1452,88210.0,88194.0,0.13641]
[1767120726801,0.1566,88209.0,88194.0,0.13641]
[1767120727001,0.1566,88209.0,88196.0,0.01133838]
[1767120727639,0.1566,88209.0,88195.0,0.01133851]
[1767120727837,0.0114,88209.0,88197.0,0.01133825]
[1767120728051,0.02426431,88214.0,88201.0,0.14774773]
[1767120728260,0.02426431,88214.0,88209.0,0.000549]
[1767120728460,0.08695765,88219.0,88209.0,0.000549]
[1767120728461,0.0114,88213.0,88209.0,0.000549]
[1767120728678,0.0114,88213.0,88202.0,0.01133761]
[1767120728901,0.02426431,88217.0,88203.0,0.01133748]
[1767120729232,0.0114,88216.0,88206.0,0.01133709]
[1767120729438,0.0114,88215.0,88206.0,0.01133709]
[1767120729639,0.0114,88214.0,88206.0,0.01133709]
[1767120729843,0.0114,88215.0,88214.0,0.000549]
[1767120730199,0.0114,88218.0,88214.0,0.000549]
[1767120730420,0.0114,88218.0,88207.0,0.01133696]
[1767120730635,0.0114,88218.0,88203.0,0.13641]
[1767120730636,0.0114,88218.0,88204.0,0.01133735]
[1767120731376,0.0114,88218.0,88206.0,0.01133709]
[1767120731963,0.0114,88218.0,88207.0,0.01133696]
[1767120732168,0.02433776,88219.0,88211.0,0.01133645]
[1767120732344,0.0114,88221.0,88218.0,0.000549]
[1767120732540,0.00010676,88221.0,88215.0,0.01133594]
[1767120732742,0.00010676,88221.0,88214.0,0.01133606]
[1767120732922,0.00010676,88221.0,88209.0,0.01133671]
[1767120733310,0.00010676,88221.0,88213.0,0.01133619]
[1767120733723,0.0243551,88229.0,88216.0,0.13641]
[1767120733917,0.01133401,88230.0,88216.0,0.13641]
[1767120733918,0.02191672,88228.0,88216.0,0.13641]
[1767120734163,0.0114,88228.0,88216.0,0.13641]
[1767120734525,0.0243551,88230.0,88216.0,0.14774581]
[1767120734722,0.1452,88231.0,88217.0,0.01133568]
[1767120735062,0.1452,88227.0,88215.0,0.01133594]
[1767120735256,0.1452,88227.0,88214.0,0.01133606]
[1767120735642,0.15653439,88227.0,88210.0,0.0114]
[1767120735824,0.01133465,88225.0,88210.0,0.01150676]
[1767120736030,0.13789,88223.0,88210.0,0.01150676]
[1767120736236,0.13789,88223.0,88210.0,0.02284334]
[1767120736468,0.14929,88223.0,88211.0,0.01133645]
[1767120736872,0.14929,88223.0,88212.0,0.01133632]
[1767120737271,0.14929,88223.0,88213.0,0.01133619]
[1767120737506,0.14929,88223.0,88212.0,0.01133632]
[1767120737726,0.0114,88223.0,88213.0,0.01133619]
[1767120737902,0.0114,88223.0,88212.0,0.01133632]
[1767120738118,0.0114,88223.0,88213.0,0.01133619]
[1767120738325,0.0114,88223.0,88212.0,0.01133632]
[1767120738487,0.0114,88223.0,88211.0,0.01133645]
[1767120738687,0.0114,88223.0,88210.0,0.02284334]
[1767120738952,0.0114,88223.0,88211.0,0.01133645]
[1767120739104,0.0114,88223.0,88210.0,0.01150676]
[1767120739304,0.14929,88223.0,88210.0,0.02284334]
[1767120739522,0.14929,88223.0,88211.0,0.01133645]
[1767120739722,0.14929,88223.0,88212.0,0.01133632]
[1767120740329,0.14929,88223.0,88214.0,0.01133606]
[1767120740529,0.13789,88228.0,88214.0,0.06801635]
[1767120740742,0.14929,88227.0,88223.0,0.000549]
[1767120741024,0.05669298,88238.0,88223.0,0.000549]
[1767120741025,0.13789,88238.0,88223.0,0.000549]
[1767120741227,0.13789,88238.0,88220.0,0.05667619]
[1767120741228,0.01133324,88236.0,88221.0,0.1469]
[1767120741456,0.01133349,88234.0,88221.0,0.1469]
[1767120741697,0.01133362,88233.0,88221.0,0.1469]
[1767120741870,0.13789,88219.0,88210.0,0.01150676]
[1767120742568,0.14922491,88223.0,88210.0,0.01150676]
[1767120742769,0.13789,88223.0,88210.0,0.01150676]
[1767120743203,0.13789,88223.0,88211.0,0.01133645]
[1767120743409,0.01133478,88224.0,88210.0,0.15840676]
[1767120743606,0.01133478,88224.0,88210.0,0.02284334]
[1767120743607,0.13789,88223.0,88210.0,0.02284334]
[1767120743785,0.01133504,88222.0,88210.0,0.01150676]
[1767120744027,0.13789,88223.0,88210.0,0.02284334]
[1767120744438,0.13789,88223.0,88210.0,0.01150676]
[1767120745357,0.13789,88223.0,88210.0,0.02284334]
[1767120745559,0.13789,88223.0,88211.0,0.01133645]
[1767120745713,0.13789,88223.0,88210.0,0.02284334]
[1767120745915,0.13789,88223.0,88211.0,0.01133645]
[1767120746124,0.14922465,88225.0,88210.0,0.02284334]
[1767120746364,0.13789,88225.0,88211.0,0.01133645]
[1767120746571,0.13789,88225.0,88210.0,0.02284334]
[1767120746774,0.13789,88230.0,88215.0,0.01133594]
[1767120746920,0.01133388,88231.0,88215.0,0.1469]
[1767120746921,0.0114,88229.0,88215.0,0.1469]
[1767120747125,0.0114,88228.0,88215.0,0.1469]
[1767120747723,0.0114,88228.0,88216.0,0.01133581]
[1767120747923,0.13789,88227.0,88214.0,0.01133606]
[1767120748167,0.14929,88227.0,88212.0,0.01133632]
[1767120748365,0.01133465,88225.0,88211.0,0.01133645]
[1767120748604,0.13789,88224.0,88211.0,0.01133645]
[1767120748994,0.13789,88224.0,88213.0,0.01133619]
[1767120749500,0.0114,88227.0,88214.0,0.01133606]
[1767120749655,0.0114,88227.0,88217.0,0.01133568]
[1767120749857,0.0114,88227.0,88216.0,0.01133581]
[1767120750281,0.14929,88227.0,88216.0,0.01133581]
[1767120750487,0.14929,88227.0,88215.0,0.01133594]
[1767120750697,0.13789,88239.0,88223.0,0.01133491]
[1767120750859,0.13789,88239.0,88227.0,0.000549]
[1767120750860,0.01133298,88238.0,88227.0,0.000549]
[1767120751054,0.14922285,88239.0,88224.0,0.01133478]
[1767120751286,0.14922324,88236.0,88222.0,0.1469]
[1767120751544,0.14922324,88236.0,88220.0,0.01133529]
[1767120751545,0.01133349,88234.0,88218.0,0.1469]
[1767120751784,0.13789,88234.0,88218.0,0.01133555]
[1767120751984,0.13789,88234.0,88217.0,0.07941396]
[1767120751985,0.00055,88218.0,88217.0,0.0114]
[1767120752104,0.13789,88223.0,88217.0,0.0114]
[1767120753226,0.82157062,88230.0,88217.0,0.0114]
[1767120753458,0.14922414,88229.0,88217.0,0.0114]
[1767120753621,0.13789,88229.0,88217.0,0.0114]
[1767120753947,0.14922452,88226.0,88217.0,0.01085]
[1767120754298,0.25213524,88225.0,88210.0,0.00010676]
[1767120754413,0.25213524,88225.0,88187.0,0.04536]
[1767120754414,0.81023661,88210.0,88192.0,0.01133889]
[1767120754613,0.13789,88210.0,88196.0,0.01133838]
[1767120754950,0.13789,88210.0,88197.0,0.01133825]
[1767120755155,0.13789,88210.0,88196.0,0.01133838]
[1767120755357,0.13789,88210.0,88198.0,0.01133812]
[1767120755678,0.05667833,88218.0,88200.0,0.01133786]
[1767120755679,0.13789,88212.0,88200.0,0.01133786]
[1767120755976,0.0114,88213.0,88201.0,0.01133773]
[1767120756196,0.0114,88213.0,88200.0,0.01133786]
[1767120756611,0.0114,88213.0,88199.0,0.01133799]
[1767120757589,0.0114,88213.0,88200.0,0.01133786]
[1767120758026,0.0114,88213.0,88201.0,0.01133773]
[1767120758330,0.0114,88215.0,88206.0,0.01133709]
[1767120758541,0.0114,88218.0,88206.0,0.01133709]
[1767120758752,0.0114,88218.0,88205.0,0.01133722]
[1767120758943,0.14929,88218.0,88205.0,0.01133722]
[1767120759514,0.14929,88218.0,88208.0,0.01133684]
[1767120759847,0.14929,88218.0,88207.0,0.01133696]
[1767120760003,0.14929,88218.0,88209.0,0.01133671]
[1767120760202,0.14929,88218.0,88205.0,0.01133722]
[1767120760404,0.01133568,88217.0,88202.0,0.01133761]
[1767120760619,0.13789,88216.0,88204.0,0.01133735]
[1767120760797,0.13789,88216.0,88203.0,0.01133748]
[1767120761826,0.13789,88216.0,88204.0,0.01133735]
[1767120762240,0.13789,88216.0,88203.0,0.01133748]
[1767120762625,0.13789,88216.0,88204.0,0.01133735]
[1767120763042,0.13789,88216.0,88202.0,0.1469]
[1767120763400,0.13789,88214.0,88200.0,0.02273786]
[1767120763622,0.13789,88214.0,88203.0,0.01133748]
[1767120764156,0.13789,88214.0,88204.0,0.01133735]
[1767120764554,0.13789,88214.0,88206.0,0.01133709]
[1767120764754,0.0114,88218.0,88209.0,0.01133671]
[1767120764954,0.13789,88219.0,88211.0,0.01133645]
[1767120765182,0.0114,88221.0,88210.0,0.01133658]
[1767120765342,0.0114,88221.0,88209.0,0.01133671]
[1767120765542,0.0114,88221.0,88208.0,0.01133684]
[1767120765785,0.0114,88221.0,88209.0,0.01133671]
[1767120766599,0.0114,88221.0,88207.0,0.1469]
[1767120766806,0.0114,88221.0,88209.0,0.01133671]
[1767120767199,0.0114,88221.0,88208.0,0.01133684]
[1767120767444,0.0114,88221.0,88210.0,0.01133658]
[1767120767937,0.0114,88221.0,88207.0,0.21492132]
[1767120767938,0.01133542,88219.0,88207.0,0.1469]
[1767120768098,0.139669,88210.0,88199.0,0.07258589]
[1767120768298,0.13912,88210.0,88199.0,0.0114]
[1767120768902,0.13912,88210.0,88199.0,0.02273799]
[1767120769102,0.13912,88210.0,88201.0,0.01133773]
[1767120769310,0.13912,88210.0,88199.0,0.0114]
[1767120769505,0.13912,88210.0,88200.0,0.01133786]
[1767120769906,0.13912,88210.0,88199.0,0.02273799]
[1767120770472,0.13912,88210.0,88200.0,0.01133786]
[1767120770677,0.01133594,88215.0,88200.0,0.01133786]
[1767120770883,0.13912,88216.0,88202.0,0.01133761]
[1767120771000,0.13912,88216.0,88203.0,0.01133748]
[1767120771212,0.01133568,88217.0,88202.0,0.15839761]
[1767120771419,0.06807757,88219.0,88203.0,0.01133748]
[1767120771624,0.02273542,88219.0,88205.0,0.14706]
[1767120771838,0.0114,88219.0,88206.0,0.15839709]
[1767120772149,0.13912,88219.0,88206.0,0.01133709]
[1767120772495,0.13912,88219.0,88207.0,0.02267265]
[1767120772651,0.13912,88219.0,88206.0,0.02273709]
[1767120772989,0.13912,88219.0,88206.0,0.0114]
[1767120773295,0.13912,88219.0,88207.0,0.0680218]
[1767120773497,0.13912,88233.0,88219.0,0.00055]
[1767120773718,0.0114,88232.0,88219.0,0.00055]
[1767120773993,0.0114,88232.0,88216.0,0.01133581]
[1767120773994,0.13912,88231.0,88216.0,0.01133581]
[1767120774306,0.15045388,88231.0,88216.0,0.01133581]
[1767120774451,0.01133401,88230.0,88215.0,0.14706]
[1767120774662,0.15045401,88230.0,88216.0,0.01133581]
[1767120774880,0.1392269,88230.0,88216.0,0.01133581]
[1767120775290,0.1392269,88230.0,88219.0,0.01133542]
[1767120775508,0.1392269,88230.0,88218.0,0.01133555]
[1767120775713,0.1392269,88230.0,88217.0,0.06801407]
[1767120775714,0.0001069,88230.0,88217.0,0.06801407]
[1767120775859,0.0003672,88230.0,88218.0,0.01133555]
[1767120776054,0.0003672,88230.0,88219.0,0.01133542]
[1767120776257,0.0003672,88230.0,88218.0,0.01133555]
[1767120776679,0.0003672,88230.0,88220.0,0.01133529]
[1767120777261,0.0003672,88230.0,88221.0,0.01133516]
[1767120777680,0.0003672,88230.0,88223.0,0.01133491]
[1767120777918,0.0003672,88230.0,88221.0,0.01133516]
[1767120778243,0.0003672,88230.0,88222.0,0.01133504]
[1767120778562,0.0003672,88230.0,88223.0,0.01133491]
[1767120778777,0.0003672,88230.0,88222.0,0.01133504]
[1767120779227,0.16185337,88235.0,88221.0,0.0114]
[1767120779404,0.16177063,88235.0,88221.0,0.0115069]
[1767120779610,0.01133221,88244.0,88226.0,0.15193452]
[1767120779812,0.14401,88244.0,88235.0,0.000549]
[1767120780233,0.14401,88244.0,88232.0,0.01133375]
[1767120780433,0.15541,88244.0,88233.0,0.01133362]
[1767120780651,0.15541,88244.0,88232.0,0.01133375]
[1767120780999,0.15541,88244.0,88235.0,0.01133337]
[1767120781533,0.0114,88244.0,88235.0,0.01133337]
[1767120781747,0.00057006,88246.0,88235.0,0.01133337]
[1767120782617,0.00057006,88246.0,88236.0,0.01133324]
[1767120782823,2.106e-05,88246.0,88236.0,0.01133324]
[1767120782939,2.106e-05,88246.0,88237.0,0.01133311]
[1767120783132,0.01133118,88252.0,88237.0,0.01133311]
[1767120783133,0.01132951,88265.0,88248.0,0.0113317]
[1767120783438,0.14401,88263.0,88248.0,0.0113317]
[1767120783658,0.0114,88264.0,88249.0,0.01133157]
[1767120783855,0.14401,88261.0,88248.0,0.0113317]
[1767120784061,0.0114,88264.0,88244.0,0.21999327]
[1767120784062,0.14401,88259.0,88244.0,0.0114]
[1767120784290,0.15534221,88244.0,88228.0,0.01133427]
[1767120784491,0.15534234,88243.0,88229.0,0.0114]
[1767120784695,0.14401,88243.0,88232.0,0.01133375]
[1767120784892,0.14401,88243.0,88231.0,0.01133388]
[1767120785255,0.14401,88243.0,88233.0,0.01133362]
[1767120785459,0.14401,88243.0,88234.0,0.01133349]
[1767120785796,0.14401,88243.0,88235.0,0.01133337]
[1767120786720,0.14401,88243.0,88232.0,0.01133375]
[1767120787228,0.15534144,88250.0,88243.0,0.00055]
[1767120787784,0.14401,88250.0,88236.0,0.01133324]
[1767120788085,0.14401,88250.0,88239.0,0.01133285]
[1767120788932,0.14401,88250.0,88238.0,0.01133298]
[1767120789140,0.01133118,88252.0,88238.0,0.01133298]
[1767120789356,0.06798031,88261.0,88252.0,0.00055]
[1767120789549,0.14401,88263.0,88247.0,0.02273182]
[1767120789909,0.14401,88263.0,88250.0,0.01133144]
[1767120790111,0.15533977,88263.0,88249.0,0.01133157]
[1767120790296,0.15533977,88263.0,88248.0,0.0113317]
[1767120790497,0.14401,88263.0,88248.0,0.0113317]
[1767120790725,0.14401,88263.0,88249.0,0.01133157]
[1767120790897,0.15533977,88263.0,88248.0,0.0113317]
[1767120791315,0.14401,88263.0,88250.0,0.01133144]
[1767120791515,0.14401,88263.0,88249.0,0.01133157]
[1767120791732,0.01132913,88268.0,88250.0,0.01133144]
[1767120791920,0.14401,88265.0,88251.0,0.01133131]
[1767120792115,0.15533951,88265.0,88251.0,0.01133131]
[1767120792315,0.01132977,88263.0,88250.0,0.1406]
[1767120792540,0.01132939,88266.0,88252.0,0.01133118]
[1767120792701,0.01132939,88266.0,88250.0,0.15193144]
[1767120792702,0.01132939,88266.0,88251.0,0.01133131]
[1767120793131,0.01132964,88264.0,88250.0,0.15193144]
[1767120793333,0.01132951,88265.0,88250.0,0.15193144]
[1767120793334,0.01132951,88265.0,88251.0,0.01133131]
[1767120793851,0.01132951,88265.0,88252.0,0.01133118]
[1767120794044,0.0114,88267.0,88253.0,0.01133105]
[1767120794255,0.0114,88267.0,88252.0,0.01133118]
[1767120794439,0.02272926,88267.0,88253.0,0.01133105]
[1767120794643,9.2e-07,88259.0,88253.0,0.01133105]
[1767120794847,9.2e-07,88259.0,88254.0,0.01133093]
[1767120795106,9.2e-07,88259.0,88254.0,0.15193093]
[1767120795909,9.2e-07,88259.0,88255.0,0.0114]
[1767120796959,9.2e-07,88259.0,88256.0,0.01133067]
[1767120797133,9.2e-07,88259.0,88255.0,0.0227308]
[1767120797564,9.2e-07,88259.0,88255.0,0.0114]
[1767120798295,9.2e-07,88259.0,88256.0,0.01133067]
[1767120798699,9.2e-07,88259.0,88256.0,0.06798395]
[1767120798895,9.2e-07,88259.0,88255.0,0.0227308]
[1767120799080,9.2e-07,88259.0,88255.0,0.15534]
[1767120799283,9.2e-07,88259.0,88255.0,0.1666708]
[1767120799478,9.2e-07,88259.0,88257.0,0.14394]
[1767120800158,9.2e-07,88259.0,88256.0,0.01133067]
[1767120801466,9.2e-07,88259.0,88255.0,0.0114]
[1767120801689,0.13708092,88259.0,88233.0,0.01133362]
[1767120801894,0.13708,88256.0,88241.0,0.0113326]
[1767120802104,0.13708,88254.0,88240.0,0.01133272]
[1767120802327,9.2e-07,88259.0,88240.0,0.55232147]
[1767120802489,0.01132887,88270.0,88256.0,0.01133067]
[1767120802698,0.148409,88269.0,88257.0,0.0114]
[1767120803110,0.13708,88269.0,88258.0,0.01133041]
[1767120803311,0.13708,88269.0,88257.0,0.02273054]
[1767120803487,0.13708,88269.0,88257.0,0.0114]
[1767120804021,0.148409,88269.0,88257.0,0.0114]
[1767120804221,0.13708,88269.0,88257.0,0.0114]
[1767120804573,0.148409,88269.0,88257.0,0.0114]
[1767120804950,0.13708,88269.0,88257.0,0.0114]
[1767120805816,0.13708,88269.0,88257.0,0.02273054]
[1767120806017,0.13708,88269.0,88257.0,0.0114]
[1767120806911,0.01132939,88266.0,88257.0,0.0114]
[1767120807120,0.14840964,88264.0,88257.0,0.010406]
[1767120807338,0.1484099,88262.0,88257.0,0.010406]
[1767120807566,0.13708,88259.0,88243.0,0.0114]
[1767120807767,0.13708,88251.0,88243.0,0.01150692]
[1767120808397,0.13708,88258.0,88251.0,0.000549]
[1767120808605,0.0114,88259.0,88251.0,0.000549]
[1767120808813,0.0114,88259.0,88249.0,0.01133157]
[1767120809235,0.01132977,88263.0,88249.0,0.01133157]
[1767120809394,0.15980964,88264.0,88249.0,0.01133157]
[1767120809594,0.15980964,88264.0,88250.0,0.01133144]
[1767120810122,0.14848,88264.0,88250.0,0.01133144]
[1767120810352,0.14848,88264.0,88251.0,0.01133131]
[1767120810771,0.14840964,88264.0,88249.0,0.01133157]
[1767120810947,0.14840977,88263.0,88248.0,0.0113317]
[1767120811793,0.14840977,88263.0,88249.0,0.01133157]
[1767120811996,0.13708,88263.0,88250.0,0.01133144]
[1767120812658,0.13708,88263.0,88250.0,0.02273144]
[1767120813268,0.14840977,88263.0,88250.0,0.0114]
[1767120813469,0.13708,88263.0,88251.0,0.01133131]
[1767120813673,0.13708,88263.0,88250.0,0.0114]
[1767120814463,0.13708,88263.0,88251.0,0.01133131]
[1767120814697,0.13708,88263.0,88250.0,0.02273144]
[1767120816281,0.13708,88263.0,88252.0,0.01133118]
[1767120816486,0.13708,88263.0,88250.0,0.02273144]
[1767120817065,0.13708,88263.0,88251.0,0.01133131]
[1767120817272,0.01132964,88264.0,88250.0,0.02273144]
[1767120817486,0.01132926,88267.0,88253.0,0.01133105]
[1767120817691,0.63100969,88270.0,88253.0,0.15527105]
[1767120817692,0.01132913,88268.0,88253.0,0.15527105]
[1767120817891,0.01132913,88268.0,88254.0,0.01133093]
[1767120818149,0.01132913,88268.0,88253.0,0.15527105]
[1767120818369,0.13708,88268.0,88255.0,0.0113308]
[1767120818796,0.563036,88270.0,88256.0,0.01133067]
[1767120818996,0.01132913,88268.0,88254.0,0.01133093]
[1767120819126,0.13708,88265.0,88253.0,0.01133105]
[1767120820027,0.13708,88265.0,88254.0,0.01133093]
[1767120820799,0.13708,88265.0,88253.0,0.01133105]
[1767120821033,0.13708,88265.0,88254.0,0.01133093]
[1767120821480,0.13708,88265.0,88253.0,0.01133105]
[1767120821695,0.13708,88265.0,88254.0,0.01133093]
[1767120822091,0.14841016,88260.0,88239.0,0.01133285]
[1767120822292,0.13708,88257.0,88248.0,0.0114]
[1767120822922,0.14841054,88257.0,88248.0,0.0114]
[1767120823124,0.13708,88257.0,88248.0,0.0114]
[1767120823300,0.14841054,88257.0,88248.0,0.0114]
[1767120823502,0.13708,88257.0,88248.0,0.0114]
[1767120823697,0.01133016,88260.0,88248.0,0.0114]
[1767120823990,0.13708,88258.0,88248.0,0.0114]
[1767120828041,0.135981,88258.0,88248.0,0.0227317]
[1767120828243,0.135981,88258.0,88248.0,0.0114]
[1767120828652,0.551636,88260.0,88248.0,0.0114]
[1767120828798,0.551636,88260.0,88248.0,0.0227317]
[1767120830037,0.551636,88260.0,88249.0,0.13832]
[1767120831226,0.0113299,88262.0,88249.0,0.13832]
[1767120831392,0.551636,88260.0,88249.0,0.13832]
[1767120831591,0.551636,88260.0,88248.0,0.0227317]
[1767120832621,0.01133003,88261.0,88248.0,0.0114]
[1767120833448,0.14813,88263.0,88250.0,0.01133144]
[1767120833882,0.14813,88263.0,88251.0,0.01133131]
[1767120834459,0.14813,88263.0,88252.0,0.01133118]
[1767120834694,0.14813,88263.0,88251.0,0.01133131]
[1767120834863,0.13673,88263.0,88253.0,0.01133105]
[1767120835061,0.13673,88263.0,88252.0,0.01133118]
[1767120835268,0.13673,88263.0,88250.0,0.05665716]
[1767120835574,0.13673,88263.0,88252.0,0.01133118]
[1767120836128,0.13673,88263.0,88251.0,0.01133131]
[1767120836336,0.011329,88269.0,88250.0,0.05665716]
[1767120836337,0.13673,88273.0,88262.0,0.0113299]
[1767120836465,0.0003181,88279.0,88267.0,0.01132926]
[1767120836466,0.1370481,88279.0,88267.0,0.01132926]
[1767120836669,0.1370481,88279.0,88270.0,0.01132887]
[1767120837262,0.0003181,88279.0,88270.0,0.01132887]
[1767120837887,0.00067441,88279.0,88270.0,0.01132887]
[1767120838087,0.00067441,88279.0,88269.0,0.011329]
[1767120838308,0.00067441,88279.0,88269.0,0.06797342]
[1767120838539,0.00067441,88279.0,88270.0,0.01132887]
[1767120838769,0.00067441,88279.0,88274.0,0.01132836]
[1767120839070,0.00067441,88279.0,88258.0,0.01133041]
[1767120839254,0.000549,88274.0,88263.0,0.02272977]
[1767120839488,0.000549,88274.0,88267.0,0.01132926]
[1767120839630,0.00067441,88279.0,88267.0,0.01132926]
[1767120839971,0.00067441,88279.0,88266.0,0.13832]
[1767120840558,0.00067441,88279.0,88266.0,0.19496672]
[1767120840761,0.00067441,88279.0,88267.0,0.01132926]
[1767120840932,0.00067441,88279.0,88266.0,0.13832]
[1767120841136,0.15494213,88279.0,88264.0,0.01132964]
[1767120841336,0.01132785,88278.0,88264.0,0.01132964]
[1767120841555,0.15426785,88278.0,88264.0,0.01132964]
[1767120841760,0.15426797,88277.0,88263.0,0.0114]
[1767120841996,0.15426797,88277.0,88254.0,0.01133093]
[1767120841997,0.000549,88264.0,88257.0,0.06118589]
[1767120842139,0.14294,88264.0,88258.0,0.0114]
[1767120842762,0.14294,88264.0,88253.0,0.01133105]
[1767120842965,0.14294,88264.0,88256.0,0.0114]
[1767120843176,0.14294,88264.0,88256.0,0.02273067]
[1767120843503,0.15426862,88272.0,88264.0,0.00055]
[1767120843809,0.14294,88268.0,88256.0,0.0114]
[1767120844312,0.14294,88268.0,88257.0,0.01133054]
[1767120844515,0.14294,88268.0,88256.0,0.02273067]
[1767120845270,0.14294,88268.0,88256.0,0.0114]
[1767120845716,0.14294,88268.0,88258.0,0.01133041]
[1767120846295,0.14294,88268.0,88256.0,0.02273067]
[1767120847918,0.14294,88268.0,88257.0,0.01133054]
[1767120848433,0.14294,88268.0,88256.0,0.02273067]
[1767120848835,0.14294,88268.0,88257.0,0.01133054]
[1767120850434,0.14294,88268.0,88256.0,0.02273067]
[1767120850685,0.14294,88268.0,88259.0,0.01133028]
[1767120851380,0.14294,88268.0,88258.0,0.01133041]
[1767120852327,0.14294,88268.0,88256.0,0.02273067]
[1767120853328,0.14294,88268.0,88257.0,0.01133054]
[1767120853784,0.14294,88268.0,88256.0,0.02273067]
[1767120854149,0.14294,88268.0,88257.0,0.01133054]
[1767120854348,0.14294,88268.0,88256.0,0.02273067]
[1767120855266,0.14294,88268.0,88257.0,0.01133054]
[1767120855437,0.14294,88268.0,88256.0,0.02273067]
[1767120855839,0.14294,88268.0,88257.0,0.01133054]
[1767120856757,0.14294,88268.0,88256.0,0.02273067]
[1767120857360,0.14294,88268.0,88259.0,0.01133028]
[1767120857825,0.14294,88268.0,88259.0,0.06798164]
[1767120858046,0.14294,88268.0,88259.0,0.01133028]
[1767120858189,0.14294,88268.0,88262.0,0.0113299]